[Event "*** Titled Tuesday Blitz AM"]
[Site "Chess.com"]
[Date "2020.01.07"]
[Round "2"]
[White "sergeikim"]
[Black "KerryStead"]
[Result "1-0"]
[WhiteElo "2434"]
[BlackElo "2069"]
[TimeControl "180+2"]
[EndTime "9:22:32 PST"]
[Termination "sergeikim won by checkmate"]

1. d4 {[%clk 0:03:01.9]} 1... c5 {[%clk 0:03:00]} 2. d5 {[%clk 0:03:02.1]} 2...
e5 {[%clk 0:03:00.8]} 3. Nc3 {[%clk 0:03:01.6]} 3... d6 {[%clk 0:03:00.9]} 4. e4
{[%clk 0:03:02.1]} 4... a6 {[%clk 0:03:01.7]} 5. a4 {[%clk 0:03:01.9]} 5... f5
{[%clk 0:03:01.9]} 6. Bd3 {[%clk 0:02:56.6]} 6... f4 {[%clk 0:03:01.9]} 7. Be2
{[%clk 0:02:57.1]} 7... Nf6 {[%clk 0:03:02.1]} 8. Nf3 {[%clk 0:02:57]} 8... Be7
{[%clk 0:03:02.1]} 9. Nd2 {[%clk 0:02:57.2]} 9... Nbd7 {[%clk 0:02:59.2]} 10.
Nc4 {[%clk 0:02:55.6]} 10... b6 {[%clk 0:02:53.1]} 11. Ra3 {[%clk 0:02:42.7]}
11... Rb8 {[%clk 0:02:51.7]} 12. Rb3 {[%clk 0:02:42.3]} 12... Nf8 {[%clk
0:02:50.2]} 13. g3 {[%clk 0:02:33.5]} 13... g5 {[%clk 0:02:25.8]} 14. h4 {[%clk
0:02:29.6]} 14... fxg3 {[%clk 0:02:23.3]} 15. fxg3 {[%clk 0:02:29.6]} 15... g4
{[%clk 0:02:22.4]} 16. Ne3 {[%clk 0:02:24.2]} 16... h5 {[%clk 0:02:20.1]} 17.
O-O {[%clk 0:02:23.1]} 17... Ng6 {[%clk 0:02:16.5]} 18. Nf5 {[%clk 0:02:21.9]}
18... Bxf5 {[%clk 0:02:04]} 19. Rxf5 {[%clk 0:02:22]} 19... Qc8 {[%clk
0:01:58.4]} 20. Bg5 {[%clk 0:02:16.2]} 20... Nd7 {[%clk 0:01:40.5]} 21. Qf1
{[%clk 0:02:03.2]} 21... Rf8 {[%clk 0:01:06.1]} 22. Bxa6 {[%clk 0:02:02.5]}
22... Qd8 {[%clk 0:00:52.1]} 23. Nb5 {[%clk 0:01:57.9]} 23... Bxg5 {[%clk
0:00:43.9]} 24. hxg5 {[%clk 0:01:41.8]} 24... Qe7 {[%clk 0:00:33.1]} 25. Nc7+
{[%clk 0:01:38.3]} 25... Kd8 {[%clk 0:00:28.9]} 26. Ne6+ {[%clk 0:01:38.3]}
26... Ke8 {[%clk 0:00:30]} 27. Bb5 {[%clk 0:01:29.1]} 27... Rb7 {[%clk
0:00:19.2]} 28. Bxd7+ {[%clk 0:01:18.1]} 28... Rxd7 {[%clk 0:00:16.4]} 29. Rxb6
{[%clk 0:01:17.1]} 29... Rd8 {[%clk 0:00:12.4]} 30. Qb5+ {[%clk 0:01:07.5]}
30... Qd7 {[%clk 0:00:09.6]} 31. Ng7+ {[%clk 0:01:05.7]} 31... Ke7 {[%clk
0:00:09.5]} 32. Rb7 {[%clk 0:01:06.6]} 32... h4 {[%clk 0:00:04.4]} 33. Rxd7+
{[%clk 0:01:03.6]} 33... Rxd7 {[%clk 0:00:05.9]} 34. Rxf8 {[%clk 0:01:03.9]}
34... Nxf8 {[%clk 0:00:06.6]} 35. Nf5+ {[%clk 0:01:03.6]} 35... Kd8 {[%clk
0:00:06.6]} 36. Qb8# {[%clk 0:01:00.5]} 1-0

[Event "*** Titled Tuesday Blitz AM"]
[Site "Chess.com"]
[Date "2020.01.07"]
[Round "2"]
[White "SHIVACalypso"]
[Black "ristingho"]
[Result "1-0"]
[WhiteElo "2277"]
[BlackElo "2503"]
[TimeControl "180+2"]
[EndTime "9:22:35 PST"]
[Termination "SHIVACalypso won by resignation"]

1. Nf3 {[%clk 0:03:01.9]} 1... c5 {[%clk 0:02:59.2]} 2. c4 {[%clk 0:03:01.4]}
2... g6 {[%clk 0:02:59.4]} 3. g3 {[%clk 0:03:02.2]} 3... Bg7 {[%clk 0:03:00.1]}
4. Bg2 {[%clk 0:02:59.6]} 4... Nc6 {[%clk 0:02:58.9]} 5. O-O {[%clk 0:03:00.8]}
5... d6 {[%clk 0:02:58.7]} 6. Nc3 {[%clk 0:03:02.3]} 6... e6 {[%clk 0:02:59.8]}
7. d3 {[%clk 0:03:03.2]} 7... Nge7 {[%clk 0:03:01.1]} 8. Rb1 {[%clk 0:03:04.5]}
8... O-O {[%clk 0:03:01.8]} 9. e4 {[%clk 0:03:04.4]} 9... a6 {[%clk 0:03:01.1]}
10. a3 {[%clk 0:03:05.1]} 10... Rb8 {[%clk 0:03:02.2]} 11. Bd2 {[%clk
0:03:04.4]} 11... b5 {[%clk 0:03:03.1]} 12. cxb5 {[%clk 0:03:06.3]} 12... axb5
{[%clk 0:03:04.9]} 13. b4 {[%clk 0:03:07.6]} 13... cxb4 {[%clk 0:03:00.7]} 14.
axb4 {[%clk 0:03:09.5]} 14... d5 {[%clk 0:03:01.6]} 15. exd5 {[%clk 0:03:03.9]}
15... Nxd5 {[%clk 0:02:57.3]} 16. Nxd5 {[%clk 0:03:04.4]} 16... exd5 {[%clk
0:02:54.6]} 17. Bf4 {[%clk 0:02:54.5]} 17... Ra8 {[%clk 0:02:45.1]} 18. d4
{[%clk 0:02:55.7]} 18... Ra4 {[%clk 0:02:42.2]} 19. Qd2 {[%clk 0:02:42.6]} 19...
Bf5 {[%clk 0:02:20.1]} 20. Rb3 {[%clk 0:02:37]} 20... Be4 {[%clk 0:02:18.4]} 21.
Rc1 {[%clk 0:02:27.9]} 21... Qd7 {[%clk 0:01:46.1]} 22. Qc3 {[%clk 0:02:00.4]}
22... Bxf3 {[%clk 0:01:27]} 23. Qxc6 {[%clk 0:01:50.5]} 23... Qxc6 {[%clk
0:01:28.1]} 24. Rxc6 {[%clk 0:01:51.3]} 24... Bxg2 {[%clk 0:01:30]} 25. Kxg2
{[%clk 0:01:50.7]} 25... Bxd4 {[%clk 0:01:31.4]} 26. Rd6 {[%clk 0:01:39.5]}
26... Ra2 {[%clk 0:01:26.3]} 27. Rf3 {[%clk 0:01:39.9]} 27... Re8 {[%clk
0:00:15.4]} 28. Rxd5 {[%clk 0:01:39.1]} 28... Bg7 {[%clk 0:00:16.2]} 29. Rxb5
{[%clk 0:01:34.1]} 29... h6 {[%clk 0:00:17]} 30. Bd6 {[%clk 0:01:30]} 30... f5
{[%clk 0:00:15.7]} 31. Bc5 {[%clk 0:01:28.3]} 31... Ree2 {[%clk 0:00:09.6]} 32.
Rb8+ {[%clk 0:01:22.7]} 32... Kf7 {[%clk 0:00:09.5]} 33. Rb7+ {[%clk 0:01:22.1]}
33... Kg8 {[%clk 0:00:10.3]} 34. Rd3 {[%clk 0:01:21.3]} 34... Bf6 {[%clk
0:00:07.9]} 35. Rb8+ {[%clk 0:01:14.3]} 35... Kf7 {[%clk 0:00:08.6]} 36. Rd7+
{[%clk 0:01:15.7]} 36... Ke6 {[%clk 0:00:09.9]} 37. Rd6+ {[%clk 0:01:14.8]}
37... Kf7 {[%clk 0:00:11.1]} 38. Rb7+ {[%clk 0:01:13.1]} 38... Re7 {[%clk
0:00:11.5]} 39. Rxf6+ {[%clk 0:01:12.6]} 39... Kxf6 {[%clk 0:00:12.5]} 40. Bxe7+
{[%clk 0:01:12.9]} 40... Ke6 {[%clk 0:00:13.7]} 41. Bc5 {[%clk 0:01:13.7]} 41...
g5 {[%clk 0:00:14.3]} 42. Rh7 {[%clk 0:01:11.2]} 42... Ke5 {[%clk 0:00:14.7]}
43. Rxh6 {[%clk 0:01:11.6]} 1-0

[Event "*** Titled Tuesday Blitz AM"]
[Site "Chess.com"]
[Date "2020.01.07"]
[Round "2"]
[White "WorldChampionBulletChess"]
[Black "Philosopherrr"]
[Result "0-1"]
[WhiteElo "2097"]
[BlackElo "2434"]
[TimeControl "180+2"]
[EndTime "9:22:36 PST"]
[Termination "Philosopherrr won by resignation"]

1. d4 {[%clk 0:02:35.7]} 1... Nf6 {[%clk 0:03:00.1]} 2. Nf3 {[%clk 0:02:37.5]}
2... e6 {[%clk 0:03:00.3]} 3. g3 {[%clk 0:02:39.4]} 3... b6 {[%clk 0:02:59.4]}
4. Bg2 {[%clk 0:02:36.7]} 4... Bb7 {[%clk 0:02:59.9]} 5. O-O {[%clk 0:02:38.6]}
5... c5 {[%clk 0:03:00.9]} 6. c3 {[%clk 0:02:20.2]} 6... Be7 {[%clk 0:03:00.5]}
7. Re1 {[%clk 0:02:16.8]} 7... O-O {[%clk 0:03:00.3]} 8. b3 {[%clk 0:02:04.1]}
8... cxd4 {[%clk 0:02:59]} 9. Qxd4 {[%clk 0:01:54.4]} 9... Nc6 {[%clk
0:02:57.4]} 10. Qd1 {[%clk 0:01:56.3]} 10... d5 {[%clk 0:02:54.7]} 11. Bb2
{[%clk 0:01:53.6]} 11... Rc8 {[%clk 0:02:52.8]} 12. Nbd2 {[%clk 0:01:49.4]}
12... Qc7 {[%clk 0:02:50]} 13. Rc1 {[%clk 0:01:48.1]} 13... Rfd8 {[%clk
0:02:50.6]} 14. Qc2 {[%clk 0:01:40.1]} 14... b5 {[%clk 0:02:45]} 15. Qb1 {[%clk
0:01:09.4]} 15... Qb6 {[%clk 0:02:34.9]} 16. c4 {[%clk 0:01:06]} 16... dxc4
{[%clk 0:02:29.5]} 17. bxc4 {[%clk 0:01:07.9]} 17... b4 {[%clk 0:02:19.8]} 18.
e4 {[%clk 0:00:53]} 18... Bc5 {[%clk 0:02:15.4]} 19. Re2 {[%clk 0:00:45.9]}
19... Ng4 {[%clk 0:02:14.5]} 20. Rf1 {[%clk 0:00:46.6]} 20... Nd4 {[%clk
0:01:40.1]} 21. Nxd4 {[%clk 0:00:43.4]} 21... Bxd4 {[%clk 0:01:39.9]} 22. Bxd4
{[%clk 0:00:42.2]} 22... Rxd4 {[%clk 0:01:40.2]} 23. c5 {[%clk 0:00:32.5]} 23...
Qb5 {[%clk 0:01:32.9]} 24. Nb3 {[%clk 0:00:27.9]} 24... Rdd8 {[%clk 0:01:22.4]}
25. Rc2 {[%clk 0:00:20.3]} 25... a5 {[%clk 0:01:19.6]} 26. h3 {[%clk 0:00:20]}
26... Ne5 {[%clk 0:01:19.8]} 27. Rd1 {[%clk 0:00:19.3]} 27... a4 {[%clk
0:01:05]} 28. Nd4 {[%clk 0:00:20.2]} 28... Qa5 {[%clk 0:01:06]} 29. f4 {[%clk
0:00:16.9]} 29... Nc6 {[%clk 0:01:01.7]} 30. Nxc6 {[%clk 0:00:15.9]} 30... Bxc6
{[%clk 0:01:02.9]} 31. Rd6 {[%clk 0:00:14]} 31... Bb5 {[%clk 0:00:36]} 32. e5
{[%clk 0:00:10.4]} 32... Bd3 {[%clk 0:00:31.8]} 33. Rd2 {[%clk 0:00:11.2]} 33...
Bxb1 {[%clk 0:00:31.7]} 34. Rxd8+ {[%clk 0:00:12.3]} 34... Rxd8 {[%clk
0:00:33.2]} 35. Rxd8+ {[%clk 0:00:14]} 35... Qxd8 {[%clk 0:00:34.1]} 36. c6
{[%clk 0:00:15.9]} 0-1

[Event "*** Titled Tuesday Blitz AM"]
[Site "Chess.com"]
[Date "2020.01.07"]
[Round "2"]
[White "GelmanAlexander"]
[Black "talento10"]
[Result "0-1"]
[WhiteElo "2485"]
[BlackElo "2244"]
[TimeControl "180+2"]
[EndTime "9:22:50 PST"]
[Termination "talento10 won on time"]

1. e4 {[%clk 0:03:01.9]} 1... c5 {[%clk 0:03:00.8]} 2. b4 {[%clk 0:03:01.4]}
2... b6 {[%clk 0:03:00.1]} 3. a3 {[%clk 0:03:00.7]} 3... e5 {[%clk 0:03:00.3]}
4. Bc4 {[%clk 0:02:48.4]} 4... Nf6 {[%clk 0:03:00.3]} 5. Nf3 {[%clk 0:02:34.9]}
5... Bd6 {[%clk 0:03:00.8]} 6. d3 {[%clk 0:02:30]} 6... h6 {[%clk 0:03:00.5]} 7.
bxc5 {[%clk 0:02:03.7]} 7... bxc5 {[%clk 0:02:58.7]} 8. Nc3 {[%clk 0:02:03.3]}
8... O-O {[%clk 0:02:58.9]} 9. g4 {[%clk 0:02:02.7]} 9... Nc6 {[%clk 0:02:44.2]}
10. g5 {[%clk 0:02:03.2]} 10... hxg5 {[%clk 0:02:44.8]} 11. Bxg5 {[%clk
0:02:01.7]} 11... Be7 {[%clk 0:02:44.9]} 12. Rg1 {[%clk 0:01:50.6]} 12... d6
{[%clk 0:02:02]} 13. Bh6 {[%clk 0:01:19]} 13... Ng4 {[%clk 0:01:37.6]} 14. Bd2
{[%clk 0:01:05.5]} 14... Rb8 {[%clk 0:01:11.1]} 15. Nd5 {[%clk 0:01:05.1]} 15...
Be6 {[%clk 0:01:09]} 16. h3 {[%clk 0:00:44.2]} 16... Nf6 {[%clk 0:01:03.9]} 17.
Bh6 {[%clk 0:00:43.3]} 17... Ne8 {[%clk 0:01:00.7]} 18. Ng5 {[%clk 0:00:38.2]}
18... Nd4 {[%clk 0:00:57.8]} 19. Qh5 {[%clk 0:00:32]} 19... Bxg5 {[%clk
0:00:55.3]} 20. Rxg5 {[%clk 0:00:24.7]} 20... Nxc2+ {[%clk 0:00:52.1]} 21. Kf1
{[%clk 0:00:24.1]} 21... Nxa1 {[%clk 0:00:49.3]} 22. Bxg7 {[%clk 0:00:11.8]}
22... Nxg7 {[%clk 0:00:41]} 23. Qh6 {[%clk 0:00:08.2]} 23... Qxg5 {[%clk
0:00:32.6]} 24. Qxg5 {[%clk 0:00:10.1]} 24... Rb1+ {[%clk 0:00:33.6]} 25. Kg2
{[%clk 0:00:10.6]} 25... Bxd5 {[%clk 0:00:33.4]} 26. Bxd5 {[%clk 0:00:12.5]}
26... Nc2 {[%clk 0:00:31.4]} 27. h4 {[%clk 0:00:13.7]} 27... Ne1+ {[%clk
0:00:28.5]} 28. Kg3 {[%clk 0:00:15.1]} 28... Nxd3 {[%clk 0:00:27.2]} 29. Kh2
{[%clk 0:00:14.9]} 29... Rb2 {[%clk 0:00:23]} 30. h5 {[%clk 0:00:15.7]} 30...
Rxf2+ {[%clk 0:00:20.5]} 31. Kg1 {[%clk 0:00:15.8]} 31... Rb8 {[%clk 0:00:18.8]}
0-1

[Event "*** Titled Tuesday Blitz AM"]
[Site "Chess.com"]
[Date "2020.01.07"]
[Round "2"]
[White "EugeneRougon"]
[Black "MidnightFox"]
[Result "1-0"]
[WhiteElo "2726"]
[BlackElo "2391"]
[TimeControl "180+2"]
[EndTime "9:22:52 PST"]
[Termination "EugeneRougon won by checkmate"]

1. e4 {[%clk 0:02:59.8]} 1... e5 {[%clk 0:03:00.2]} 2. Nf3 {[%clk 0:03:00.6]}
2... Nc6 {[%clk 0:02:59.2]} 3. Bb5 {[%clk 0:03:01.2]} 3... a6 {[%clk 0:03:00.2]}
4. Ba4 {[%clk 0:03:02]} 4... Nf6 {[%clk 0:02:59.8]} 5. d3 {[%clk 0:03:03.3]}
5... b5 {[%clk 0:02:58.9]} 6. Bb3 {[%clk 0:03:04.7]} 6... Bc5 {[%clk 0:03:00.5]}
7. a4 {[%clk 0:03:05.8]} 7... Rb8 {[%clk 0:03:01]} 8. O-O {[%clk 0:03:05.3]}
8... d6 {[%clk 0:03:01.8]} 9. c3 {[%clk 0:02:57.6]} 9... h6 {[%clk 0:03:02]} 10.
Nbd2 {[%clk 0:02:57.8]} 10... O-O {[%clk 0:03:01.9]} 11. Re1 {[%clk 0:02:53.9]}
11... Bb6 {[%clk 0:03:03.1]} 12. h3 {[%clk 0:02:51]} 12... Bb7 {[%clk
0:03:01.2]} 13. Nf1 {[%clk 0:02:38.5]} 13... Ne7 {[%clk 0:03:02.2]} 14. Ng3
{[%clk 0:02:37.6]} 14... Ng6 {[%clk 0:03:03.1]} 15. a5 {[%clk 0:02:34.7]} 15...
Ba7 {[%clk 0:03:03]} 16. Be3 {[%clk 0:02:35.6]} 16... Bxe3 {[%clk 0:03:03.7]}
17. fxe3 {[%clk 0:02:35.1]} 17... d5 {[%clk 0:03:04.4]} 18. exd5 {[%clk
0:02:34.4]} 18... Bxd5 {[%clk 0:02:58.9]} 19. d4 {[%clk 0:02:25]} 19... Re8
{[%clk 0:02:52]} 20. Bc2 {[%clk 0:02:20.6]} 20... e4 {[%clk 0:02:47]} 21. Nd2
{[%clk 0:02:19.1]} 21... Qd6 {[%clk 0:02:42]} 22. Nf5 {[%clk 0:02:16.5]} 22...
Qe6 {[%clk 0:02:37.3]} 23. Rf1 {[%clk 0:02:14.4]} 23... Ne7 {[%clk 0:02:31]} 24.
Ng3 {[%clk 0:02:01]} 24... Rbd8 {[%clk 0:02:16.6]} 25. Nb3 {[%clk 0:01:58.9]}
25... Qd6 {[%clk 0:02:10.7]} 26. Qe1 {[%clk 0:01:44]} 26... Bc4 {[%clk
0:01:47.2]} 27. Rf4 {[%clk 0:01:26]} 27... Ned5 {[%clk 0:01:46.6]} 28. Nf5
{[%clk 0:01:17.4]} 28... Qf8 {[%clk 0:01:39.1]} 29. Rf2 {[%clk 0:01:13.5]} 29...
Nh5 {[%clk 0:01:24.7]} 30. Nc5 {[%clk 0:01:06.4]} 30... g6 {[%clk 0:01:24.7]}
31. Bd1 {[%clk 0:00:41.1]} 31... Ng7 {[%clk 0:01:07.1]} 32. Nxh6+ {[%clk
0:00:40.7]} 32... Kh7 {[%clk 0:01:07.9]} 33. Rxf7 {[%clk 0:00:31]} 33... Kxh6
{[%clk 0:01:06.8]} 34. Qh4+ {[%clk 0:00:26.4]} 34... Nh5 {[%clk 0:01:08.1]} 35.
Rxf8 {[%clk 0:00:25.7]} 35... Rxf8 {[%clk 0:01:10]} 36. Ne6 {[%clk 0:00:24.4]}
36... Rf1+ {[%clk 0:00:59.7]} 37. Kh2 {[%clk 0:00:25.5]} 37... Re8 {[%clk
0:00:49.7]} 38. Bxh5 {[%clk 0:00:25.9]} 38... Rxa1 {[%clk 0:00:50.3]} 39. Bg4#
{[%clk 0:00:25.5]} 1-0

[Event "*** Titled Tuesday Blitz AM"]
[Site "Chess.com"]
[Date "2020.01.07"]
[Round "2"]
[White "LogoCzar"]
[Black "kinga2008"]
[Result "1-0"]
[WhiteElo "2399"]
[BlackElo "1840"]
[TimeControl "180+2"]
[EndTime "9:22:52 PST"]
[Termination "LogoCzar won by resignation"]

1. e4 {[%clk 0:03:01.9]} 1... c5 {[%clk 0:02:59.9]} 2. Nf3 {[%clk 0:03:03.2]}
2... d5 {[%clk 0:02:49.5]} 3. exd5 {[%clk 0:03:02.6]} 3... Qxd5 {[%clk
0:02:49.8]} 4. Nc3 {[%clk 0:03:03.6]} 4... Qd8 {[%clk 0:02:49.1]} 5. Bc4 {[%clk
0:03:01.9]} 5... e6 {[%clk 0:02:41.6]} 6. d4 {[%clk 0:02:52.8]} 6... Nc6 {[%clk
0:02:40.2]} 7. d5 {[%clk 0:02:51.8]} 7... exd5 {[%clk 0:02:37.8]} 8. Nxd5 {[%clk
0:02:52.4]} 8... Be6 {[%clk 0:02:21.5]} 9. Bf4 {[%clk 0:02:44.3]} 9... Bxd5
{[%clk 0:02:20.4]} 10. Bxd5 {[%clk 0:02:41.8]} 10... Nf6 {[%clk 0:02:16.2]} 11.
Bxc6+ {[%clk 0:02:36]} 11... bxc6 {[%clk 0:02:11.9]} 12. O-O {[%clk 0:02:34.2]}
12... Be7 {[%clk 0:02:11.8]} 13. Re1 {[%clk 0:02:24.1]} 13... O-O {[%clk
0:02:07.2]} 14. Qxd8 {[%clk 0:02:11.1]} 14... Bxd8 {[%clk 0:01:59.8]} 15. Bd6
{[%clk 0:02:09.9]} 15... Re8 {[%clk 0:01:59.5]} 16. Bxc5 {[%clk 0:02:08.3]}
16... Bc7 {[%clk 0:01:50.8]} 17. Kf1 {[%clk 0:01:49.6]} 17... Nd5 {[%clk
0:01:45.3]} 18. g3 {[%clk 0:01:42.8]} 18... a5 {[%clk 0:01:42.7]} 19. c4 {[%clk
0:01:26]} 19... Nb6 {[%clk 0:01:42.3]} 20. b3 {[%clk 0:01:23.9]} 20... a4 {[%clk
0:01:39.7]} 21. Nd4 {[%clk 0:01:18.9]} 21... Nd7 {[%clk 0:01:30.9]} 22. b4
{[%clk 0:01:06]} 22... Nxc5 {[%clk 0:01:22.2]} 23. bxc5 {[%clk 0:01:06.8]} 23...
Be5 {[%clk 0:01:11]} 24. Rad1 {[%clk 0:01:05.9]} 24... Bxd4 {[%clk 0:01:01.7]}
25. Rxd4 {[%clk 0:01:06.5]} 25... Rxe1+ {[%clk 0:01:00.3]} 26. Kxe1 {[%clk
0:01:07.4]} 26... Kf8 {[%clk 0:01:02.2]} 27. Rd6 {[%clk 0:01:02.9]} 27... Rc8
{[%clk 0:01:01.9]} 28. Kd2 {[%clk 0:01:04]} 28... Ke7 {[%clk 0:00:59.1]} 29. Kc3
{[%clk 0:01:04.3]} 29... Rc7 {[%clk 0:00:41.9]} 30. Kb4 {[%clk 0:01:04.6]} 30...
f6 {[%clk 0:00:38.4]} 31. Kxa4 {[%clk 0:01:04.9]} 31... Ra7+ {[%clk 0:00:37.7]}
32. Kb3 {[%clk 0:01:04.1]} 32... Rb7+ {[%clk 0:00:38.2]} 33. Kc3 {[%clk
0:01:04]} 33... Rc7 {[%clk 0:00:34.3]} 34. a4 {[%clk 0:01:04.5]} 34... g5 {[%clk
0:00:31.3]} 35. a5 {[%clk 0:01:04.8]} 35... h5 {[%clk 0:00:30.4]} 36. a6 {[%clk
0:01:03.2]} 36... f5 {[%clk 0:00:31]} 37. f4 {[%clk 0:01:03.3]} 37... gxf4
{[%clk 0:00:26.7]} 38. gxf4 {[%clk 0:01:04]} 38... Rc8 {[%clk 0:00:23.3]} 39.
Kb4 {[%clk 0:01:04.7]} 39... Rb8+ {[%clk 0:00:24.2]} 40. Ka5 {[%clk 0:01:05.3]}
40... Rb2 {[%clk 0:00:25]} 41. a7 {[%clk 0:01:01.2]} 41... Rxh2 {[%clk
0:00:26.9]} 42. Kb6 {[%clk 0:00:59.7]} 42... Rb2+ {[%clk 0:00:26.4]} 43. Kxc6
{[%clk 0:01:00.4]} 1-0

[Event "*** Titled Tuesday Blitz AM"]
[Site "Chess.com"]
[Date "2020.01.07"]
[Round "2"]
[White "gui_borba"]
[Black "shyam"]
[Result "1-0"]
[WhiteElo "2291"]
[BlackElo "2692"]
[TimeControl "180+2"]
[EndTime "9:22:55 PST"]
[Termination "gui_borba won by resignation"]

1. e4 {[%clk 0:03:01.9]} 1... e5 {[%clk 0:03:00.5]} 2. Nf3 {[%clk 0:02:55]} 2...
Nc6 {[%clk 0:03:01.8]} 3. Bc4 {[%clk 0:02:53.8]} 3... Bc5 {[%clk 0:02:56.5]} 4.
c3 {[%clk 0:02:50.2]} 4... Nf6 {[%clk 0:02:57.5]} 5. d3 {[%clk 0:02:50.5]} 5...
d6 {[%clk 0:02:56]} 6. O-O {[%clk 0:02:50.9]} 6... a5 {[%clk 0:02:55.8]} 7. a4
{[%clk 0:02:51.1]} 7... Bb6 {[%clk 0:02:50]} 8. h3 {[%clk 0:02:50.3]} 8... h6
{[%clk 0:02:50.3]} 9. Na3 {[%clk 0:02:50.3]} 9... Qe7 {[%clk 0:02:51.3]} 10. Nc2
{[%clk 0:02:47.9]} 10... g5 {[%clk 0:02:52.5]} 11. Be3 {[%clk 0:02:25.3]} 11...
g4 {[%clk 0:02:50.9]} 12. hxg4 {[%clk 0:02:24.8]} 12... Bxg4 {[%clk 0:02:50.5]}
13. Bxb6 {[%clk 0:02:25.9]} 13... cxb6 {[%clk 0:02:52.4]} 14. Ne3 {[%clk
0:02:26.9]} 14... Rg8 {[%clk 0:02:49.5]} 15. Nxg4 {[%clk 0:02:12.6]} 15... Rxg4
{[%clk 0:02:51.4]} 16. g3 {[%clk 0:01:35.2]} 16... O-O-O {[%clk 0:02:44]} 17.
Kg2 {[%clk 0:01:07]} 17... Rdg8 {[%clk 0:02:43.4]} 18. Rh1 {[%clk 0:01:07.1]}
18... h5 {[%clk 0:02:43.8]} 19. Kf1 {[%clk 0:01:07.5]} 19... Kb8 {[%clk
0:02:38.9]} 20. Nh4 {[%clk 0:01:08.3]} 20... Qd7 {[%clk 0:02:13.1]} 21. Qf3
{[%clk 0:01:06.9]} 21... Qd8 {[%clk 0:02:06.1]} 22. Nf5 {[%clk 0:01:05]} 22...
Rh8 {[%clk 0:01:59.8]} 23. Bxf7 {[%clk 0:01:03.7]} 23... Ne7 {[%clk 0:01:58.1]}
24. Ne3 {[%clk 0:00:57.5]} 24... Nc6 {[%clk 0:01:31.1]} 25. Nxg4 {[%clk
0:00:53.5]} 25... hxg4 {[%clk 0:01:33]} 26. Rxh8 {[%clk 0:00:54]} 26... Qxh8
{[%clk 0:01:34.9]} 27. Qg2 {[%clk 0:00:55.2]} 27... Ne7 {[%clk 0:01:25.7]} 28.
Ke2 {[%clk 0:00:55.5]} 28... Qg7 {[%clk 0:01:24.2]} 29. Bc4 {[%clk 0:00:55.7]}
29... Ka7 {[%clk 0:01:24.3]} 30. Rg1 {[%clk 0:00:56.3]} 30... Qg6 {[%clk
0:01:10]} 31. Rh1 {[%clk 0:00:56.6]} 31... d5 {[%clk 0:01:11.6]} 32. exd5 {[%clk
0:00:50.7]} 32... e4 {[%clk 0:01:13.5]} 33. dxe4 {[%clk 0:00:47.3]} 33... Nxe4
{[%clk 0:01:15.4]} 34. Bd3 {[%clk 0:00:46.5]} 34... Nxc3+ {[%clk 0:01:05.4]} 35.
bxc3 {[%clk 0:00:46.2]} 35... Qf6 {[%clk 0:01:07.3]} 36. Qe4 {[%clk 0:00:40.7]}
36... Nc8 {[%clk 0:01:04.6]} 37. Rh7 {[%clk 0:00:35.3]} 37... Nd6 {[%clk
0:01:03.1]} 38. Qe3 {[%clk 0:00:35.4]} 38... Qxc3 {[%clk 0:01:02.2]} 39. Rh6
{[%clk 0:00:32.6]} 39... Qb2+ {[%clk 0:01:00.2]} 40. Kf1 {[%clk 0:00:33.4]}
40... Qa3 {[%clk 0:00:58.7]} 41. Bb5 {[%clk 0:00:29.2]} 41... Qb4 {[%clk
0:00:54.5]} 42. Kg2 {[%clk 0:00:29]} 42... Nf5 {[%clk 0:00:54]} 43. Qxb6+ {[%clk
0:00:28.3]} 1-0

[Event "*** Titled Tuesday Blitz AM"]
[Site "Chess.com"]
[Date "2020.01.07"]
[Round "2"]
[White "Ariadna_Atreides"]
[Black "Artem_Ilyin"]
[Result "0-1"]
[WhiteElo "2062"]
[BlackElo "2531"]
[TimeControl "180+2"]
[EndTime "9:22:57 PST"]
[Termination "Artem_Ilyin won by resignation"]

1. d4 {[%clk 0:03:01.9]} 1... Nf6 {[%clk 0:02:58.8]} 2. Nf3 {[%clk 0:03:02.3]}
2... e6 {[%clk 0:02:50.8]} 3. e3 {[%clk 0:03:02.3]} 3... d5 {[%clk 0:02:49.4]}
4. Bd3 {[%clk 0:03:02.3]} 4... c5 {[%clk 0:02:50]} 5. b3 {[%clk 0:03:01.5]} 5...
Be7 {[%clk 0:02:50.8]} 6. O-O {[%clk 0:03:01.4]} 6... O-O {[%clk 0:02:51.8]} 7.
Bb2 {[%clk 0:03:01.1]} 7... b6 {[%clk 0:02:52.9]} 8. Nbd2 {[%clk 0:03:01.2]}
8... Ba6 {[%clk 0:02:53.4]} 9. Ne5 {[%clk 0:02:51.4]} 9... Bxd3 {[%clk
0:02:52.2]} 10. cxd3 {[%clk 0:02:51.2]} 10... Qc8 {[%clk 0:02:38.4]} 11. dxc5
{[%clk 0:02:41.7]} 11... bxc5 {[%clk 0:02:38.8]} 12. f4 {[%clk 0:02:38.4]} 12...
Qb7 {[%clk 0:02:30.4]} 13. Ndf3 {[%clk 0:02:38.4]} 13... a5 {[%clk 0:02:23.5]}
14. Rb1 {[%clk 0:02:31.3]} 14... Na6 {[%clk 0:02:05.7]} 15. Qe2 {[%clk 0:02:26]}
15... Nb4 {[%clk 0:02:05.4]} 16. Ba1 {[%clk 0:02:22.7]} 16... Ne8 {[%clk
0:01:50.5]} 17. Rfc1 {[%clk 0:01:55.6]} 17... f6 {[%clk 0:01:46.6]} 18. Ng4
{[%clk 0:01:55.8]} 18... Rc8 {[%clk 0:01:46.5]} 19. Nf2 {[%clk 0:01:25.6]} 19...
Nd6 {[%clk 0:01:39.5]} 20. h3 {[%clk 0:01:10.1]} 20... Nb5 {[%clk 0:01:30.1]}
21. Qb2 {[%clk 0:01:02.6]} 21... Rfd8 {[%clk 0:01:22.8]} 22. a3 {[%clk
0:00:52.9]} 22... Nc6 {[%clk 0:01:21.6]} 23. d4 {[%clk 0:00:45.3]} 23... cxd4
{[%clk 0:01:18]} 24. a4 {[%clk 0:00:34.5]} 24... Nc3 {[%clk 0:01:10.3]} 25. Nxd4
{[%clk 0:00:25.9]} 25... Nxd4 {[%clk 0:01:10.6]} 26. Rxc3 {[%clk 0:00:21.8]}
26... Rxc3 {[%clk 0:01:10.8]} 27. exd4 {[%clk 0:00:20.1]} 27... Rc6 {[%clk
0:01:01.8]} 28. Nd3 {[%clk 0:00:19.5]} 28... Rdc8 {[%clk 0:01:02]} 29. Qe2
{[%clk 0:00:19.1]} 29... Qd7 {[%clk 0:00:55.9]} 30. Re1 {[%clk 0:00:15.8]} 30...
Bf8 {[%clk 0:00:51.8]} 31. Kh2 {[%clk 0:00:16.1]} 31... Rc2 {[%clk 0:00:45.2]}
32. Qxe6+ {[%clk 0:00:16]} 32... Qxe6 {[%clk 0:00:47.1]} 33. Rxe6 {[%clk
0:00:16.8]} 33... Ra2 {[%clk 0:00:45.4]} 34. Bb2 {[%clk 0:00:15.9]} 34... Rc2
{[%clk 0:00:45.5]} 35. Bc1 {[%clk 0:00:02.7]} 35... Rxg2+ {[%clk 0:00:44.3]} 36.
Kh1 {[%clk 0:00:04.1]} 36... Rg3 {[%clk 0:00:38]} 37. h4 {[%clk 0:00:03.6]}
37... Rxd3 {[%clk 0:00:38.4]} 0-1